Workbook

Sheet паспорт
A1: ПАТ "УКРТРАНСГАЗ" | G1: ПАСПОРТ ФІЗИКО-ХІМІЧНИХ ПОКАЗНИКІВ ПРИРОДНОГО ГАЗУ № 61
A2: Філія "УМГ "Київтрансгаз" | G2: переданого Лубенським ЛВУМГ та прийнятого ПАТ "Полтавагаз", ПАТ "Лубнигаз", ПАТ "Чернігівгаз"
A3: Лубенський п/м Лубенське ЛВУМГ | G3: Маршрут № 61
A4: Вимірювальна хіміко-аналітична лабораторія
A5: Свідоцтво № 199-15 чинно до 31.12.2018 р. | K5: по газопроводу "Гнідинці - Шебелинка-Полтава-Київ " | V5: за період з | X5: 2017-05-01 | Z5: по | AA5: 2017-05-31
A7: Число місяця | B7: Компонентний склад, % мол. | N7: Фізико-хімічні показники газу обчислені на основі компонентного складу, 101,325 кПа | X7: Температура точки роси за вологою (Р = 3.92 МПа), ºС | Y7: Температура точки роси за вуглеводнями, ºС | Z7: Вміст сірководню, г/м3 | AA7: Вміст меркаптанової сірки, г/м3 | AB7: Вміст механічних домішок, г/м3
N8: Густина абсолютна, кг/м3,при 20 ºС, | O8: Температура вимірювання/згоряння при 20/25°С
B9: метан, С1 | C9: етан, С2 | D9: пропан, С3 | E9: ізо-бутан, і-С4 | F9: н-бутан, н-С4 | G9: нео-пентан, нео-С5 | H9: ізо-пентан, і-С5 | I9: н-пентан, н-С5 | J9: гексани та вищі, С6+ | K9: кисень, О2 | L9: азот, N2 | M9: діоксид вуглецю, CО2 | O9: Теплота згоряння нижча | R9: Теплота згоряння вища | U9: Число Воббе вище
O10: ккал/м3 | P10: МДж/м3 | Q10: кВт⋅год/м3 | R10: ккал/м3 | S10: МДж/м3 | T10: кВт⋅год/м3 | U10: ккал/м3 | V10: МДж/м3 | W10: кВт⋅год/м3
A11: 1 | B11: =[1]Лист1!$D$19 -> 78.6423 | C11: =[1]Лист1!$D$20 -> 11.33 | D11: =[1]Лист1!$D$21 -> 1.369 | E11: =[1]Лист1!$D$22 -> 0.05 | F11: =[1]Лист1!$D$23 -> 0.184 | G11: =[1]Лист1!$D$24 -> 0.0047 | H11: =[1]Лист1!$D$25 -> 0.213 | I11: =[1]Лист1!$D$26 -> 0.185 | J11: =[1]Лист1!$D$27 -> 0.082 | K11: =[1]Лист1!$D$28 -> 0.021 | L11: =[1]Лист1!$D$29 -> 4.842 | M11: =[1]Лист1!$D$30 -> 3.077 | N11: =[1]Лист1!$F$36 -> 0.827 | O11: =[1]Лист1!$F$38 -> 8398 | P11: =[1]Лист1!$F$37 -> 35.16 | Q11: =[1]Лист1!$F$43 -> 9.766666667 | R11: =[1]Лист1!$F$40 -> 9278 | S11: =[1]Лист1!$F$39 -> 38.85 | T11: =[1]Лист1!$F$44 -> 10.79166667 | U11: =[1]Лист1!$F$42 -> 11197 | V11: =[1]Лист1!$F$41 -> 46.88 | W11: =V11/3.6 -> 13.02222222 | X11: -8.7 | Y11: -6.5 | Z11: 0.0036 | AA11: відсут. | AB11: відсут. | AC11: =SUM(B11:M11)+$K$42+$N$42 -> 100
A12: 2 | O12: =[1]Лист1!$F$38 -> 8398 | P12: =[1]Лист1!$F$37 -> 35.16 | Q12: =[1]Лист1!$F$43 -> 9.766666667 | R12: =[1]Лист1!$F$40 -> 9278 | S12: =[1]Лист1!$F$39 -> 38.85 | T12: =[1]Лист1!$F$44 -> 10.79166667 | U12: =[1]Лист1!$F$42 -> 11197 | V12: =[1]Лист1!$F$41 -> 46.88 | W12: =V12/3.6 -> 13.02222222 | AC12: 0
A13: 3 | O13: =[1]Лист1!$F$38 -> 8398 | P13: =[1]Лист1!$F$37 -> 35.16 | Q13: =[1]Лист1!$F$43 -> 9.766666667 | R13: =[1]Лист1!$F$40 -> 9278 | S13: =[1]Лист1!$F$39 -> 38.85 | T13: =[1]Лист1!$F$44 -> 10.79166667 | U13: =[1]Лист1!$F$42 -> 11197 | V13: =[1]Лист1!$F$41 -> 46.88 | W13: =V13/3.6 -> 13.02222222 | AC13: 0 | AD13: =IF(AC13=100,"ОК"," ") -> 
A14: 4 | O14: =[1]Лист1!$F$38 -> 8398 | P14: =[1]Лист1!$F$37 -> 35.16 | Q14: =[1]Лист1!$F$43 -> 9.766666667 | R14: =[1]Лист1!$F$40 -> 9278 | S14: =[1]Лист1!$F$39 -> 38.85 | T14: =[1]Лист1!$F$44 -> 10.79166667 | U14: =[1]Лист1!$F$42 -> 11197 | V14: =[1]Лист1!$F$41 -> 46.88 | W14: 13.02222222 | AC14: 0 | AD14: =IF(AC14=100,"ОК"," ") -> 
A15: 5 | O15: =[1]Лист1!$F$38 -> 8398 | P15: =[1]Лист1!$F$37 -> 35.16 | Q15: =[1]Лист1!$F$43 -> 9.766666667 | R15: =[1]Лист1!$F$40 -> 9278 | S15: =[1]Лист1!$F$39 -> 38.85 | T15: =[1]Лист1!$F$44 -> 10.79166667 | U15: =[1]Лист1!$F$42 -> 11197 | V15: =[1]Лист1!$F$41 -> 46.88 | W15: 13.02222222 | AC15: 0
A16: 6 | O16: =[1]Лист1!$F$38 -> 8398 | P16: =[1]Лист1!$F$37 -> 35.16 | Q16: =[1]Лист1!$F$43 -> 9.766666667 | R16: =[1]Лист1!$F$40 -> 9278 | S16: =[1]Лист1!$F$39 -> 38.85 | T16: =[1]Лист1!$F$44 -> 10.79166667 | U16: =[1]Лист1!$F$42 -> 11197 | V16: =[1]Лист1!$F$41 -> 46.88 | W16: 13.02222222 | AC16: 0
A17: 7 | O17: =[1]Лист1!$F$38 -> 8398 | P17: =[1]Лист1!$F$37 -> 35.16 | Q17: =[1]Лист1!$F$43 -> 9.766666667 | R17: =[1]Лист1!$F$40 -> 9278 | S17: =[1]Лист1!$F$39 -> 38.85 | T17: =[1]Лист1!$F$44 -> 10.79166667 | U17: =[1]Лист1!$F$42 -> 11197 | V17: =[1]Лист1!$F$41 -> 46.88 | W17: 13.02222222 | AC17: 0
A18: 8 | B18: =[2]Лист1!$D$19 -> 77.9139 | C18: =[2]Лист1!$D$20 -> 11.467 | D18: =[2]Лист1!$D$21 -> 1.253 | E18: =[2]Лист1!$D$22 -> 0.06 | F18: =[2]Лист1!$D$23 -> 0.356 | G18: =[2]Лист1!$D$24 -> 0.0051 | H18: =[2]Лист1!$D$25 -> 0.19 | I18: =[2]Лист1!$D$26 -> 0.176 | J18: =[2]Лист1!$D$27 -> 0.067 | K18: =[2]Лист1!$D$28 -> 0.018 | L18: =[2]Лист1!$D$29 -> 5.54 | M18: =[2]Лист1!$D$30 -> 2.954 | N18: =[2]Лист1!$F$36 -> 0.8305 | O18: =[2]Лист1!$F$38 -> 8367 | P18: =[2]Лист1!$F$37 -> 35.03 | Q18: =[2]Лист1!$F$43 -> 9.730555556 | R18: =[2]Лист1!$F$40 -> 9244 | S18: =[2]Лист1!$F$39 -> 38.7 | T18: =[2]Лист1!$F$44 -> 10.75 | U18: =[2]Лист1!$F$42 -> 1132 | V18: =[2]Лист1!$F$41 -> 46.61 | W18: =V18/3.6 -> 12.94722222 | X18: -8.7 | Y18: -6.2 | AC18: 100 | AD18: ОК
A19: 9 | O19: =[2]Лист1!$F$38 -> 8367 | P19: =[2]Лист1!$F$37 -> 35.03 | Q19: =[2]Лист1!$F$43 -> 9.730555556 | R19: =[2]Лист1!$F$40 -> 9244 | S19: =[2]Лист1!$F$39 -> 38.7 | T19: =[2]Лист1!$F$44 -> 10.75 | U19: =[2]Лист1!$F$42 -> 1132 | V19: =[2]Лист1!$F$41 -> 46.61 | W19: =V19/3.6 -> 12.94722222 | AC19: 0
A20: 10 | O20: =[2]Лист1!$F$38 -> 8367 | P20: =[2]Лист1!$F$37 -> 35.03 | Q20: =[2]Лист1!$F$43 -> 9.730555556 | R20: =[2]Лист1!$F$40 -> 9244 | S20: =[2]Лист1!$F$39 -> 38.7 | T20: =[2]Лист1!$F$44 -> 10.75 | U20: =[2]Лист1!$F$42 -> 1132 | V20: =[2]Лист1!$F$41 -> 46.61 | W20: =V20/3.6 -> 12.94722222 | AC20: 0
A21: 11 | O21: =[2]Лист1!$F$38 -> 8367 | P21: =[2]Лист1!$F$37 -> 35.03 | Q21: =[2]Лист1!$F$43 -> 9.730555556 | R21: =[2]Лист1!$F$40 -> 9244 | S21: =[2]Лист1!$F$39 -> 38.7 | T21: =[2]Лист1!$F$44 -> 10.75 | U21: =[2]Лист1!$F$42 -> 1132 | V21: =[2]Лист1!$F$41 -> 46.61 | W21: 12.94722222 | AC21: 0
A22: 12 | O22: =[2]Лист1!$F$38 -> 8367 | P22: =[2]Лист1!$F$37 -> 35.03 | Q22: =[2]Лист1!$F$43 -> 9.730555556 | R22: =[2]Лист1!$F$40 -> 9244 | S22: =[2]Лист1!$F$39 -> 38.7 | T22: =[2]Лист1!$F$44 -> 10.75 | U22: =[2]Лист1!$F$42 -> 1132 | V22: =[2]Лист1!$F$41 -> 46.61 | W22: 12.94722222 | AC22: 0
A23: 13 | O23: =[2]Лист1!$F$38 -> 8367 | P23: =[2]Лист1!$F$37 -> 35.03 | Q23: =[2]Лист1!$F$43 -> 9.730555556 | R23: =[2]Лист1!$F$40 -> 9244 | S23: =[2]Лист1!$F$39 -> 38.7 | T23: =[2]Лист1!$F$44 -> 10.75 | U23: =[2]Лист1!$F$42 -> 1132 | V23: =[2]Лист1!$F$41 -> 46.61 | W23: 12.94722222 | AC23: 0
A24: 14 | O24: =[2]Лист1!$F$38 -> 8367 | P24: =[2]Лист1!$F$37 -> 35.03 | Q24: =[2]Лист1!$F$43 -> 9.730555556 | R24: =[2]Лист1!$F$40 -> 9244 | S24: =[2]Лист1!$F$39 -> 38.7 | T24: =[2]Лист1!$F$44 -> 10.75 | U24: =[2]Лист1!$F$42 -> 1132 | V24: =[2]Лист1!$F$41 -> 46.61 | W24: 12.94722222 | AC24: 0
A25: 15 | B25: =[3]Лист1!$D$19 -> 77.141 | C25: =[3]Лист1!$D$20 -> 10.183 | D25: =[3]Лист1!$D$21 -> 4.343 | E25: =[3]Лист1!$D$22 -> 0.323 | F25: =[3]Лист1!$D$23 -> 0.588 | G25: =[3]Лист1!$D$24 -> 0 | H25: =[3]Лист1!$D$25 -> 0.054 | I25: =[3]Лист1!$D$26 -> 0.036 | J25: =[3]Лист1!$D$27 -> 0.012 | K25: =[3]Лист1!$D$28 -> 0.014 | L25: =[3]Лист1!$D$29 -> 4.245 | M25: =[3]Лист1!$D$30 -> 3.061 | N25: =[3]Лист1!$F$36 -> 0.8546 | O25: =[3]Лист1!$F$38 -> 8772 | P25: =[3]Лист1!$F$37 -> 36.72 | Q25: =[3]Лист1!$F$43 -> 10.2 | R25: =[3]Лист1!$F$40 -> 9680 | S25: =[3]Лист1!$F$39 -> 40.53 | T25: =[3]Лист1!$F$44 -> 11.25833333 | U25: =[3]Лист1!$F$42 -> 11493 | V25: =[3]Лист1!$F$41 -> 48.12 | W25: =V25/3.6 -> 13.36666667 | X25: -9.9 | Y25: -8.7 | AC25: 100 | AD25: ОК
A26: 16 | O26: =[3]Лист1!$F$38 -> 8772 | P26: =[3]Лист1!$F$37 -> 36.72 | Q26: =[3]Лист1!$F$43 -> 10.2 | R26: =[3]Лист1!$F$40 -> 9680 | S26: =[3]Лист1!$F$39 -> 40.53 | T26: =[3]Лист1!$F$44 -> 11.25833333 | U26: =[3]Лист1!$F$42 -> 11493 | V26: =[3]Лист1!$F$41 -> 48.12 | W26: =V26/3.6 -> 13.36666667 | AC26: 0
A27: 17 | O27: =[3]Лист1!$F$38 -> 8772 | P27: =[3]Лист1!$F$37 -> 36.72 | Q27: =[3]Лист1!$F$43 -> 10.2 | R27: =[3]Лист1!$F$40 -> 9680 | S27: =[3]Лист1!$F$39 -> 40.53 | T27: =[3]Лист1!$F$44 -> 11.25833333 | U27: =[3]Лист1!$F$42 -> 11493 | V27: =[3]Лист1!$F$41 -> 48.12 | W27: 13.36666667 | AC27: 0
A28: 18 | O28: =[3]Лист1!$F$38 -> 8772 | P28: =[3]Лист1!$F$37 -> 36.72 | Q28: =[3]Лист1!$F$43 -> 10.2 | R28: =[3]Лист1!$F$40 -> 9680 | S28: =[3]Лист1!$F$39 -> 40.53 | T28: =[3]Лист1!$F$44 -> 11.25833333 | U28: =[3]Лист1!$F$42 -> 11493 | V28: =[3]Лист1!$F$41 -> 48.12 | W28: 13.36666667 | AC28: 0
A29: 19 | O29: =[3]Лист1!$F$38 -> 8772 | P29: =[3]Лист1!$F$37 -> 36.72 | Q29: =[3]Лист1!$F$43 -> 10.2 | R29: =[3]Лист1!$F$40 -> 9680 | S29: =[3]Лист1!$F$39 -> 40.53 | T29: =[3]Лист1!$F$44 -> 11.25833333 | U29: =[3]Лист1!$F$42 -> 11493 | V29: =[3]Лист1!$F$41 -> 48.12 | W29: 13.36666667 | AC29: 0
A30: 20 | O30: =[3]Лист1!$F$38 -> 8772 | P30: =[3]Лист1!$F$37 -> 36.72 | Q30: =[3]Лист1!$F$43 -> 10.2 | R30: =[3]Лист1!$F$40 -> 9680 | S30: =[3]Лист1!$F$39 -> 40.53 | T30: =[3]Лист1!$F$44 -> 11.25833333 | U30: =[3]Лист1!$F$42 -> 11493 | V30: =[3]Лист1!$F$41 -> 48.12 | W30: 13.36666667 | AC30: 0 | AD30: =IF(AC30=100,"ОК"," ") -> 
A31: 21 | O31: =[3]Лист1!$F$38 -> 8772 | P31: =[3]Лист1!$F$37 -> 36.72 | Q31: =[3]Лист1!$F$43 -> 10.2 | R31: =[3]Лист1!$F$40 -> 9680 | S31: =[3]Лист1!$F$39 -> 40.53 | T31: =[3]Лист1!$F$44 -> 11.25833333 | U31: =[3]Лист1!$F$42 -> 11493 | V31: =[3]Лист1!$F$41 -> 48.12 | W31: 13.36666667 | AC31: 0
A32: 22 | B32: =[4]Лист1!$D$19 -> 78.7741 | C32: =[4]Лист1!$D$20 -> 11.623 | D32: =[4]Лист1!$D$21 -> 1.24 | E32: =[4]Лист1!$D$22 -> 0.066 | F32: =[4]Лист1!$D$23 -> 0.333 | G32: =[4]Лист1!$D$24 -> 0.0049 | H32: =[4]Лист1!$D$25 -> 0.204 | I32: =[4]Лист1!$D$26 -> 0.174 | J32: =[4]Лист1!$D$27 -> 0.071 | K32: =[4]Лист1!$D$28 -> 0.017 | L32: =[4]Лист1!$D$29 -> 4.523 | M32: =[4]Лист1!$D$30 -> 2.97 | N32: =[4]Лист1!$F$36 -> 0.8265 | O32: =[4]Лист1!$F$38 -> 8457 | P32: =[4]Лист1!$F$37 -> 35.41 | Q32: =[4]Лист1!$F$43 -> 9.836111111 | R32: =[4]Лист1!$F$40 -> 9343 | S32: =[4]Лист1!$F$39 -> 39.12 | T32: =[4]Лист1!$F$44 -> 10.86666667 | U32: =[4]Лист1!$F$42 -> 11279 | V32: =[4]Лист1!$F$41 -> 47.22 | W32: =V32/3.6 -> 13.11666667 | X32: -9 | Y32: -7.8 | AC32: 100 | AD32: ОК
A33: 23 | O33: =[4]Лист1!$F$38 -> 8457 | P33: =[4]Лист1!$F$37 -> 35.41 | Q33: =[4]Лист1!$F$43 -> 9.836111111 | R33: =[4]Лист1!$F$40 -> 9343 | S33: =[4]Лист1!$F$39 -> 39.12 | T33: =[4]Лист1!$F$44 -> 10.86666667 | U33: =[4]Лист1!$F$42 -> 11279 | V33: =[4]Лист1!$F$41 -> 47.22 | W33: =V33/3.6 -> 13.11666667 | AC33: 0 | AD33: =IF(AC33=100,"ОК"," ") -> 
A34: 24 | O34: =[4]Лист1!$F$38 -> 8457 | P34: =[4]Лист1!$F$37 -> 35.41 | Q34: =[4]Лист1!$F$43 -> 9.836111111 | R34: =[4]Лист1!$F$40 -> 9343 | S34: =[4]Лист1!$F$39 -> 39.12 | T34: =[4]Лист1!$F$44 -> 10.86666667 | U34: =[4]Лист1!$F$42 -> 11279 | V34: =[4]Лист1!$F$41 -> 47.22 | W34: 13.11666667 | AC34: 0
A35: 25 | O35: =[4]Лист1!$F$38 -> 8457 | P35: =[4]Лист1!$F$37 -> 35.41 | Q35: =[4]Лист1!$F$43 -> 9.836111111 | R35: =[4]Лист1!$F$40 -> 9343 | S35: =[4]Лист1!$F$39 -> 39.12 | T35: =[4]Лист1!$F$44 -> 10.86666667 | U35: =[4]Лист1!$F$42 -> 11279 | V35: =[4]Лист1!$F$41 -> 47.22 | W35: 13.11666667 | AC35: 0
A36: 26 | O36: =[4]Лист1!$F$38 -> 8457 | P36: =[4]Лист1!$F$37 -> 35.41 | Q36: =[4]Лист1!$F$43 -> 9.836111111 | R36: =[4]Лист1!$F$40 -> 9343 | S36: =[4]Лист1!$F$39 -> 39.12 | T36: =[4]Лист1!$F$44 -> 10.86666667 | U36: =[4]Лист1!$F$42 -> 11279 | V36: =[4]Лист1!$F$41 -> 47.22 | W36: 13.11666667 | AC36: 0
A37: 27 | O37: =[4]Лист1!$F$38 -> 8457 | P37: =[4]Лист1!$F$37 -> 35.41 | Q37: =[4]Лист1!$F$43 -> 9.836111111 | R37: =[4]Лист1!$F$40 -> 9343 | S37: =[4]Лист1!$F$39 -> 39.12 | T37: =[4]Лист1!$F$44 -> 10.86666667 | U37: =[4]Лист1!$F$42 -> 11279 | V37: =[4]Лист1!$F$41 -> 47.22 | W37: 13.11666667 | AC37: 0
A38: 28 | O38: =[4]Лист1!$F$38 -> 8457 | P38: =[4]Лист1!$F$37 -> 35.41 | Q38: =[4]Лист1!$F$43 -> 9.836111111 | R38: =[4]Лист1!$F$40 -> 9343 | S38: =[4]Лист1!$F$39 -> 39.12 | T38: =[4]Лист1!$F$44 -> 10.86666667 | U38: =[4]Лист1!$F$42 -> 11279 | V38: =[4]Лист1!$F$41 -> 47.22 | W38: 13.11666667 | AC38: 0
A39: 29 | B39: =[5]Лист1!$D$19 -> 77.486 | C39: =[5]Лист1!$D$20 -> 12.865 | D39: =[5]Лист1!$D$21 -> 1.617 | E39: =[5]Лист1!$D$22 -> 0.083 | F39: =[5]Лист1!$D$23 -> 0.308 | G39: =[5]Лист1!$D$24 -> 0 | H39: =[5]Лист1!$D$25 -> 0.169 | I39: =[5]Лист1!$D$26 -> 0.151 | J39: =[5]Лист1!$D$27 -> 0.064 | K39: =[5]Лист1!$D$28 -> 0.018 | L39: =[5]Лист1!$D$29 -> 4.427 | M39: =[5]Лист1!$D$30 -> 2.812 | N39: =[5]Лист1!$F$36 -> 0.8341 | O39: =[5]Лист1!$F$38 -> 8583 | P39: =[5]Лист1!$F$37 -> 35.93 | Q39: =[5]Лист1!$F$43 -> 9.980555556 | R39: =[5]Лист1!$F$40 -> 9478 | S39: =[5]Лист1!$F$39 -> 39.68 | T39: =[5]Лист1!$F$44 -> 11.02222222 | U39: =[5]Лист1!$F$42 -> 11390 | V39: =[5]Лист1!$F$41 -> 47.69 | W39: =V39/3.6 -> 13.24722222 | X39: -10.7 | Y39: -8.3 | AC39: 100 | AD39: ОК
A40: 30 | O40: =[5]Лист1!$F$38 -> 8583 | P40: =[5]Лист1!$F$37 -> 35.93 | Q40: =[5]Лист1!$F$43 -> 9.980555556 | R40: =[5]Лист1!$F$40 -> 9478 | S40: =[5]Лист1!$F$39 -> 39.68 | T40: =[5]Лист1!$F$44 -> 11.02222222 | U40: =[5]Лист1!$F$42 -> 11390 | V40: =[5]Лист1!$F$41 -> 47.69 | W40: =V40/3.6 -> 13.24722222 | AC40: 0
A41: 31 | O41: =[5]Лист1!$F$38 -> 8583 | P41: =[5]Лист1!$F$37 -> 35.93 | Q41: =[5]Лист1!$F$43 -> 9.980555556 | R41: =[5]Лист1!$F$40 -> 9478 | S41: =[5]Лист1!$F$39 -> 39.68 | T41: =[5]Лист1!$F$44 -> 11.02222222 | U41: =[5]Лист1!$F$42 -> 11390 | V41: =[5]Лист1!$F$41 -> 47.69 | W41: 13.24722222 | AC41: 0
A42: Рівень одоризації відповідає вимогам чинних нормативних документів | O42: 8497.23837 | P42: 35.57417747 | Q42: 9.881715963 | R42: 9384.741347 | S42: 39.29272178 | T42: 10.91464494
H43: Середньозважене значення теплоти згоряння:
B46: Головний інженер Лубенського ЛВУМГ Сирота В.П. 01.06.2017 року
C47: Підрозділу підприємства, якому підпорядкована лабораторія | O47: прізвище | R47: підпис | V47: дата
B48: Завідувач лабораторією Лубенського ЛВУМГ Алєксєєнко Н.А. 01.06.2017 року
C49: Лабораторія, де здійснювалось вимірювання газу | O49: прізвище | R49: підпис | V49: дата
B50: Начальник служби ГВ та М Шило О.Є. 01.06.2017 року
C51: Підрозділу, відповідального за облік газу за маршрутом | O51: прізвище | R51: підпис | V51: дата

Sheet розрахунок
A2: Додаток до Паспорту фізико-хімічних показників природного газу по маршруту № 61
A4: Число місяця | B4: Теплота згоряння вища, МДж/м3 | C4: Полтавська область | E4: Чернігівська область | F4: Загальний обсяг газу, м3
C5: Обсяг газу переданого за добу, м3
C6: ГРС Чорнуха | D6: ГРС Вишневе | E6: ГРС Богдани
A7: 1 | B7: =[1]Лист1!$F$39 -> 38.85 | C7: 3819.9 | D7: 403.5 | E7: 0 | F7: =SUM(C7:E7) -> 4223.4
A8: 2 | B8: =[1]Лист1!$F$39 -> 38.85 | C8: 3862.2 | D8: 428 | E8: 30.9 | F8: 4321.1
A9: 3 | B9: =[1]Лист1!$F$39 -> 38.85 | C9: 3681.9 | D9: 416.3 | E9: 172.9 | F9: 4271.1
A10: 4 | B10: =[1]Лист1!$F$39 -> 38.85 | C10: 3580.4 | D10: 534.9 | E10: 228.4 | F10: 4343.7
A11: 5 | B11: =[1]Лист1!$F$39 -> 38.85 | C11: 3776.4 | D11: 474.6 | E11: 222.9 | F11: 4473.9
A12: 6 | B12: =[1]Лист1!$F$39 -> 38.85 | C12: 3610.7 | D12: 488.1 | E12: 235.3 | F12: 4334.1
A13: 7 | B13: =[1]Лист1!$F$39 -> 38.85 | C13: 3603 | D13: 371.9 | E13: 214.1 | F13: 4189
A14: 8 | B14: =[2]Лист1!$F$39 -> 38.7 | C14: 3547.1 | D14: 417.7 | E14: 248.7 | F14: 4213.5
A15: 9 | B15: =[2]Лист1!$F$39 -> 38.7 | C15: 4512.7 | D15: 512.4 | E15: 419.6 | F15: 5444.7
A16: 10 | B16: =[2]Лист1!$F$39 -> 38.7 | C16: 6779.4 | D16: 866 | E16: 710.1 | F16: 8355.5
A17: 11 | B17: =[2]Лист1!$F$39 -> 38.7 | C17: 6345.7 | D17: 994.5 | E17: 706.6 | F17: 8046.8
A18: 12 | B18: =[2]Лист1!$F$39 -> 38.7 | C18: 6188.8 | D18: 947 | E18: 611.5 | F18: 7747.3
A19: 13 | B19: =[2]Лист1!$F$39 -> 38.7 | C19: 8340.4 | D19: 1061.5 | E19: 810.8 | F19: 10212.7
A20: 14 | B20: =[2]Лист1!$F$39 -> 38.7 | C20: 6931 | D20: 904.2 | E20: 660.6 | F20: 8495.8
A21: 15 | B21: =[3]Лист1!$F$39 -> 40.53 | C21: 4303.3 | D21: 568.1 | E21: 350 | F21: 5221.4
A22: 16 | B22: =[3]Лист1!$F$39 -> 40.53 | C22: 3767.4 | D22: 505.4 | E22: 311.6 | F22: 4584.4
A23: 17 | B23: =[3]Лист1!$F$39 -> 40.53 | C23: 4192.1 | D23: 598.8 | E23: 355.8 | F23: 5146.7
A24: 18 | B24: =[3]Лист1!$F$39 -> 40.53 | C24: 4789.8 | D24: 668.2 | E24: 443.8 | F24: 5901.8
A25: 19 | B25: =[3]Лист1!$F$39 -> 40.53 | C25: 4970.9 | D25: 603.2 | E25: 416.2 | F25: 5990.3
A26: 20 | B26: =[3]Лист1!$F$39 -> 40.53 | C26: 4348.5 | D26: 535.2 | E26: 322 | F26: 5205.7
A27: 21 | B27: =[3]Лист1!$F$39 -> 40.53 | C27: 3264.1 | D27: 538.5 | E27: 322.9 | F27: 4125.5
A28: 22 | B28: =[4]Лист1!$F$39 -> 39.12 | C28: 67.5 | D28: 488.5 | E28: 211.4 | F28: 767.4
A29: 23 | B29: =[4]Лист1!$F$39 -> 39.12 | C29: 3574.2 | D29: 360.2 | E29: 189.5 | F29: 4123.9
A30: 24 | B30: =[4]Лист1!$F$39 -> 39.12 | C30: 3155.8 | D30: 397.6 | E30: 179.5 | F30: 3732.9
A31: 25 | B31: =[4]Лист1!$F$39 -> 39.12 | C31: 2843.4 | D31: 339.7 | E31: 181.4 | F31: 3364.5
A32: 26 | B32: =[4]Лист1!$F$39 -> 39.12 | C32: 2758.6 | D32: 319.3 | E32: 167.7 | F32: 3245.6
A33: 27 | B33: =[4]Лист1!$F$39 -> 39.12 | C33: 3125.3 | D33: 503 | E33: 196.9 | F33: 3825.2
A34: 28 | B34: =[4]Лист1!$F$39 -> 39.12 | C34: 3094.3 | D34: 350.4 | E34: 197.7 | F34: 3642.4
A35: 29 | B35: =[5]Лист1!$F$39 -> 39.68 | C35: 2796.5 | D35: 313.6 | E35: 162.3 | F35: 3272.4
A36: 30 | B36: =[5]Лист1!$F$39 -> 39.68 | C36: 2571 | D36: 399.4 | E36: 140.7 | F36: 3111.1
A37: 31 | B37: =[5]Лист1!$F$39 -> 39.68 | C37: 2576.4 | D37: 287.5 | E37: 151.5 | F37: 3015.4
A38: Загальний обсяг газу, м3 | C38: =SUM(C7:C37) -> 124778.7 | D38: =SUM(D7:D37) -> 16597.2 | E38: 9573.3 | F38: =SUM(F7:F37) -> 150949.2
A39: Енергія, МДж | C39: =SUMPRODUCT(B7:B37,C7:C37) -> 4902664.972 | D39: =SUMPRODUCT(B7:B37,D7:D37) -> 652270.221 | E39: =SUMPRODUCT(B7:B37,E7:E37) -> 376269.726 | F39: =SUMPRODUCT(B7:B37,F7:F37) -> 5931204.919
A40: Теплота згоряння (середньозважене значення за місяць), МДж/м³ | C40: 39.29088035 | D40: 39.30001573 | E40: 39.30407759 | F40: 39.29272178
A41: Теплота згоряння (середньозважене значення за місяць), ккал/м³ | C41: 9384.465679 | D41: 9386.647626 | E41: 9387.617786 | F41: 9384.905498
A42: Теплота згоряння (середньозважене значення за місяць), кВт*год./м³ | C42: 10.91413343 | D42: 10.91667103 | E42: 10.91779933 | F42: 10.91464494

Sheet додаток
A2: Додаток до Паспорту фізико-хімічних показників природного газу № 61
A4: Область | B4: ГРС, прямий споживач | C4: Cередньозважене значення вищої теплоти згоряння
C5: МДж/м³ | D5: ккал/м³ | E5: кВт*год./м³
A6: Полтавська область | B6: ГРС Чорнухи | C6: 39.29088035 | D6: 9384.465679 | E6: 10.91413343
B7: ГРС Вишневе | C7: 39.30001573 | D7: 9386.647626 | E7: 10.91667103
A8: Чернігівська область | B8: ГРС Богдани | C8: 39.30407759 | D8: 9387.617786 | E8: 10.91779933
A9: Середньозважене значення вищої теплоти згоряння по маршруту № 61 | C9: 39.29272178 | D9: 9384.905498 | E9: 10.91464494
A13: Головний інженер Лубенського ЛВУМГ Сирота В.П. | F13: 01.06.2017 р.
A14: Підрозділу підприємства, якому підпорядкована лабораторія | D14: прізвище | E14: підпис | F14: дата
A15: Завідувач лабораторією Лубенського ЛВУМГ Алєксєєнко Н.А. | F15: =F13 -> 01.06.2017 р.
A16: Лабораторія, де здійснювалось вимірювання газу | D16: прізвище | E16: підпис | F16: дата
A17: Начальник служби ГВ та М Шило О.Є | F17: =F13 -> 01.06.2017 р.
A18: Підрозділу, відповідального за облік газу за маршрутом | D18: прізвище | E18: підпис | F18: дата

Sheet variablesList (hidden)
A1: 3 | B1: x:\gaysin | C1: 10, 11, 24, 25, 127, 128, 132, 180, 207, 215 | D1: x:\
B2: x:\Illinci
B3: x:\Talne
